[Event "*** Titled Tuesday Blitz"]
[Site "Chess.com"]
[Date "2020.11.24"]
[Round "10"]
[White "ChessWarrior3"]
[Black "Sergienko_Sergey"]
[Result "0-1"]
[WhiteElo "2107"]
[BlackElo "2337"]
[TimeControl "180+1"]
[EndTime "12:13:24 PST"]
[Termination "Sergienko_Sergey won by resignation"]

1. e4 {[%clk 0:02:58.8]} 1... c5 {[%clk 0:02:59.6]} 2. Nf3 {[%clk 0:02:58.6]}
2... a6 {[%clk 0:02:59]} 3. c4 {[%clk 0:02:58]} 3... e6 {[%clk 0:02:58]} 4. Nc3
{[%clk 0:02:53.7]} 4... d6 {[%clk 0:02:57.4]} 5. d4 {[%clk 0:02:48.4]} 5... cxd4
{[%clk 0:02:57.4]} 6. Nxd4 {[%clk 0:02:47.7]} 6... Nf6 {[%clk 0:02:57]} 7. Be3
{[%clk 0:02:44.7]} 7... Be7 {[%clk 0:02:55.3]} 8. Be2 {[%clk 0:02:42.9]} 8... b6
{[%clk 0:02:53.5]} 9. Bf3 {[%clk 0:02:40.2]} 9... Ra7 {[%clk 0:02:32.8]} 10. O-O
{[%clk 0:02:32.6]} 10... O-O {[%clk 0:02:32]} 11. Be2 {[%clk 0:02:28.9]} 11...
Qc7 {[%clk 0:02:28.9]} 12. f4 {[%clk 0:02:19.7]} 12... Bb7 {[%clk 0:02:25]} 13.
Ncb5 {[%clk 0:02:02.5]} 13... axb5 {[%clk 0:02:21.4]} 14. Nxb5 {[%clk
0:02:00.1]} 14... Qd8 {[%clk 0:02:18.4]} 15. Nxa7 {[%clk 0:01:58.6]} 15... Bxe4
{[%clk 0:02:11.3]} 16. Nb5 {[%clk 0:01:56.6]} 16... d5 {[%clk 0:02:05.4]} 17.
Nc3 {[%clk 0:01:54.7]} 17... Bf5 {[%clk 0:01:33.7]} 18. cxd5 {[%clk 0:01:52.2]}
18... exd5 {[%clk 0:01:32.8]} 19. Bd4 {[%clk 0:01:47.8]} 19... Nc6 {[%clk
0:01:29.5]} 20. Bxf6 {[%clk 0:01:44.4]} 20... Bxf6 {[%clk 0:01:29.3]} 21. Qxd5
{[%clk 0:01:44.2]} 21... Nd4 {[%clk 0:01:17]} 22. Rad1 {[%clk 0:01:35.4]} 22...
Qxd5 {[%clk 0:01:13.8]} 23. Nxd5 {[%clk 0:01:33]} 23... Nxe2+ {[%clk 0:01:11.5]}
24. Kh1 {[%clk 0:01:33.3]} 24... Re8 {[%clk 0:00:42.9]} 25. Nxf6+ {[%clk
0:01:31]} 25... gxf6 {[%clk 0:00:42.5]} 26. h3 {[%clk 0:01:26.2]} 26... Ng3+
{[%clk 0:00:40.7]} 27. Kg1 {[%clk 0:01:23.6]} 27... Nxf1 {[%clk 0:00:40.4]} 28.
Kxf1 {[%clk 0:01:24.5]} 28... Be6 {[%clk 0:00:35.6]} 29. b3 {[%clk 0:01:19]}
29... Rc8 {[%clk 0:00:34.1]} 30. Rd6 {[%clk 0:01:15.5]} 30... Rc2 {[%clk
0:00:31.6]} 31. Rxb6 {[%clk 0:01:14.1]} 31... Rxa2 {[%clk 0:00:31.2]} 32. g4
{[%clk 0:01:08.6]} 32... Rb2 {[%clk 0:00:29.6]} 33. b4 {[%clk 0:01:06.3]} 33...
f5 {[%clk 0:00:28.8]} 34. g5 {[%clk 0:01:03.9]} 34... Kg7 {[%clk 0:00:28.5]} 35.
h4 {[%clk 0:01:04.1]} 35... Kg6 {[%clk 0:00:28.3]} 36. b5 {[%clk 0:01:02.2]}
36... Rxb5 {[%clk 0:00:26.4]} 37. Rxb5 {[%clk 0:00:46.8]} 37... Bc4+ {[%clk
0:00:26]} 38. Kf2 {[%clk 0:00:46.7]} 38... Bxb5 {[%clk 0:00:25.9]} 39. Kg3
{[%clk 0:00:46.3]} 39... Kh5 {[%clk 0:00:25.8]} 40. Kh3 {[%clk 0:00:46.3]} 40...
Be2 {[%clk 0:00:23.4]} 41. Kg3 {[%clk 0:00:46.1]} 41... Bg4 {[%clk 0:00:23]} 42.
Kg2 {[%clk 0:00:44.6]} 42... Kxh4 {[%clk 0:00:23]} 43. Kf2 {[%clk 0:00:44.3]}
0-1

[Event "*** Titled Tuesday Blitz"]
[Site "Chess.com"]
[Date "2020.11.24"]
[Round "10"]
[White "FMOlexandrProhorov"]
[Black "Chessbard1972"]
[Result "0-1"]
[WhiteElo "2185"]
[BlackElo "2317"]
[TimeControl "180+1"]
[EndTime "12:13:24 PST"]
[Termination "Chessbard1972 won on time"]

1. e4 {[%clk 0:03:00.9]} 1... c5 {[%clk 0:02:54.3]} 2. c3 {[%clk 0:02:59.5]}
2... d5 {[%clk 0:02:52.6]} 3. exd5 {[%clk 0:02:59]} 3... Qxd5 {[%clk 0:02:47.8]}
4. d4 {[%clk 0:02:59.9]} 4... Nf6 {[%clk 0:02:44.9]} 5. Nf3 {[%clk 0:03:00.4]}
5... Bg4 {[%clk 0:02:42.6]} 6. Be2 {[%clk 0:03:00]} 6... e6 {[%clk 0:02:42.3]}
7. Na3 {[%clk 0:02:58.6]} 7... Nc6 {[%clk 0:02:37.7]} 8. Nb5 {[%clk 0:02:53.5]}
8... Qd8 {[%clk 0:02:35.5]} 9. dxc5 {[%clk 0:02:33.5]} 9... Bxc5 {[%clk
0:02:31.4]} 10. Bf4 {[%clk 0:02:31.6]} 10... Nd5 {[%clk 0:02:27.6]} 11. Bg3
{[%clk 0:02:29.6]} 11... a6 {[%clk 0:02:25.9]} 12. Nbd4 {[%clk 0:02:28.1]} 12...
Nxd4 {[%clk 0:02:23.6]} 13. Nxd4 {[%clk 0:02:25.1]} 13... Bxe2 {[%clk
0:02:22.7]} 14. Nxe2 {[%clk 0:02:21.4]} 14... O-O {[%clk 0:02:18.5]} 15. O-O
{[%clk 0:02:21.2]} 15... Qe7 {[%clk 0:01:45.3]} 16. Qa4 {[%clk 0:02:14.6]} 16...
Rfd8 {[%clk 0:01:37.9]} 17. Nf4 {[%clk 0:01:57.5]} 17... Nxf4 {[%clk 0:01:34.2]}
18. Qxf4 {[%clk 0:01:55.5]} 18... Bd6 {[%clk 0:01:31.7]} 19. Qe4 {[%clk
0:01:53.7]} 19... Bxg3 {[%clk 0:01:30.9]} 20. hxg3 {[%clk 0:01:54.6]} 20... Rd5
{[%clk 0:01:27.9]} 21. c4 {[%clk 0:01:52.4]} 21... Rd2 {[%clk 0:01:26.6]} 22. b3
{[%clk 0:01:25.8]} 22... Rad8 {[%clk 0:01:24.6]} 23. Qf3 {[%clk 0:01:18.3]}
23... Qd7 {[%clk 0:01:22]} 24. Rfe1 {[%clk 0:01:16.2]} 24... h6 {[%clk
0:01:16.3]} 25. Rac1 {[%clk 0:01:14.4]} 25... Rxa2 {[%clk 0:01:11.9]} 26. c5
{[%clk 0:01:12.2]} 26... Qd5 {[%clk 0:00:58.5]} 27. Qc3 {[%clk 0:00:57.9]} 27...
Qd2 {[%clk 0:00:51.1]} 28. Qf3 {[%clk 0:00:56.7]} 28... Qd5 {[%clk 0:00:48.5]}
29. Qc3 {[%clk 0:00:56.3]} 29... Rd2 {[%clk 0:00:45.4]} 30. b4 {[%clk
0:00:51.6]} 30... Rd3 {[%clk 0:00:43.4]} 31. Qc2 {[%clk 0:00:45.6]} 31... Qd4
{[%clk 0:00:40.6]} 32. c6 {[%clk 0:00:41.1]} 32... Rd2 {[%clk 0:00:35.7]} 0-1

[Event "*** Titled Tuesday Blitz"]
[Site "Chess.com"]
[Date "2020.11.24"]
[Round "10"]
[White "geordie_derraugh"]
[Black "keepitcool9499"]
[Result "0-1"]
[WhiteElo "2488"]
[BlackElo "2638"]
[TimeControl "180+1"]
[EndTime "12:13:25 PST"]
[Termination "keepitcool9499 won by resignation"]

1. e4 {[%clk 0:03:00.9]} 1... e6 {[%clk 0:03:00.9]} 2. d4 {[%clk 0:03:00.5]}
2... d5 {[%clk 0:03:01.8]} 3. Nd2 {[%clk 0:03:01]} 3... c5 {[%clk 0:03:01.3]} 4.
Ngf3 {[%clk 0:03:00.8]} 4... Nc6 {[%clk 0:03:01.8]} 5. exd5 {[%clk 0:03:00.6]}
5... Qxd5 {[%clk 0:03:00.3]} 6. Bc4 {[%clk 0:02:55.8]} 6... Qd8 {[%clk
0:02:47.5]} 7. dxc5 {[%clk 0:02:47]} 7... Bxc5 {[%clk 0:02:42.4]} 8. O-O {[%clk
0:02:46.8]} 8... Nf6 {[%clk 0:02:41]} 9. c3 {[%clk 0:02:42.3]} 9... O-O {[%clk
0:02:34]} 10. Qe2 {[%clk 0:02:42.4]} 10... Be7 {[%clk 0:02:29.7]} 11. Rd1 {[%clk
0:02:30.6]} 11... Qc7 {[%clk 0:02:19.8]} 12. Ne4 {[%clk 0:02:22.9]} 12... Bd7
{[%clk 0:02:08.3]} 13. Bg5 {[%clk 0:02:11.3]} 13... Rfd8 {[%clk 0:01:57.4]} 14.
Nxf6+ {[%clk 0:02:04.6]} 14... Bxf6 {[%clk 0:01:54.8]} 15. Bxf6 {[%clk
0:02:03.3]} 15... gxf6 {[%clk 0:01:55.7]} 16. Bb3 {[%clk 0:00:57.2]} 16... Ne7
{[%clk 0:01:51.7]} 17. Qe4 {[%clk 0:00:52.6]} 17... Bc6 {[%clk 0:01:47.3]} 18.
Qg4+ {[%clk 0:00:51.7]} 18... Kh8 {[%clk 0:01:43.2]} 19. Qh4 {[%clk 0:00:49.5]}
19... Kg7 {[%clk 0:01:40.8]} 20. Nd4 {[%clk 0:00:49.7]} 20... Ng6 {[%clk
0:01:37.6]} 21. Qh3 {[%clk 0:00:35.2]} 21... Bd5 {[%clk 0:01:25.3]} 22. Bc2
{[%clk 0:00:29.7]} 22... f5 {[%clk 0:01:21.7]} 23. Rd3 {[%clk 0:00:19.5]} 23...
Be4 {[%clk 0:01:19.2]} 24. Rg3 {[%clk 0:00:16.7]} 24... Rxd4 {[%clk 0:01:02.6]}
25. cxd4 {[%clk 0:00:12.2]} 25... Qxc2 {[%clk 0:00:59.5]} 26. f3 {[%clk
0:00:10]} 26... Bd5 {[%clk 0:00:56.9]} 27. Re1 {[%clk 0:00:09.1]} 27... Qxb2
{[%clk 0:00:55.1]} 28. Qh4 {[%clk 0:00:06.4]} 28... Rc8 {[%clk 0:00:43.4]} 29.
h3 {[%clk 0:00:05.8]} 29... Rc1 {[%clk 0:00:43.1]} 30. Rxc1 {[%clk 0:00:04.8]}
30... Qxc1+ {[%clk 0:00:44]} 31. Kh2 {[%clk 0:00:05]} 31... Qe3 {[%clk
0:00:43.6]} 32. Qh5 {[%clk 0:00:03.8]} 32... Qh6 {[%clk 0:00:41.4]} 33. Qxh6+
{[%clk 0:00:03.2]} 33... Kxh6 {[%clk 0:00:42.3]} 34. h4 {[%clk 0:00:03.6]} 34...
Nxh4 {[%clk 0:00:39]} 35. Rh3 {[%clk 0:00:03.9]} 35... Kg5 {[%clk 0:00:39.5]}
36. f4+ {[%clk 0:00:04.1]} 36... Kg4 {[%clk 0:00:39.6]} 37. g3 {[%clk
0:00:04.4]} 37... Nf3+ {[%clk 0:00:38.9]} 38. Kg2 {[%clk 0:00:04.9]} 38... Ng5+
{[%clk 0:00:38.8]} 0-1

[Event "*** Titled Tuesday Blitz"]
[Site "Chess.com"]
[Date "2020.11.24"]
[Round "10"]
[White "Jungle_Jaguar"]
[Black "guillembaches"]
[Result "1-0"]
[WhiteElo "2616"]
[BlackElo "2409"]
[TimeControl "180+1"]
[EndTime "12:13:31 PST"]
[Termination "Jungle_Jaguar won on time"]

1. e4 {[%clk 0:03:00.9]} 1... c5 {[%clk 0:03:00.2]} 2. Nf3 {[%clk 0:03:00.8]}
2... d6 {[%clk 0:03:00.6]} 3. d4 {[%clk 0:03:00.6]} 3... cxd4 {[%clk 0:03:01]}
4. Nxd4 {[%clk 0:02:59.5]} 4... Nf6 {[%clk 0:03:01.2]} 5. Nc3 {[%clk 0:02:57.4]}
5... Nc6 {[%clk 0:03:01.5]} 6. Bg5 {[%clk 0:02:53]} 6... e6 {[%clk 0:03:01.3]}
7. Bb5 {[%clk 0:02:42.9]} 7... Bd7 {[%clk 0:02:59.7]} 8. Qd3 {[%clk 0:02:38.9]}
8... h6 {[%clk 0:02:56.3]} 9. Bh4 {[%clk 0:02:32]} 9... Be7 {[%clk 0:02:51.7]}
10. O-O-O {[%clk 0:02:29.8]} 10... O-O {[%clk 0:02:47.2]} 11. f4 {[%clk
0:02:18.7]} 11... a6 {[%clk 0:02:34.5]} 12. Bxc6 {[%clk 0:02:18.4]} 12... bxc6
{[%clk 0:02:29]} 13. e5 {[%clk 0:02:11.4]} 13... Nd5 {[%clk 0:02:23.7]} 14. Bxe7
{[%clk 0:02:06.6]} 14... Qxe7 {[%clk 0:02:23.2]} 15. Qg3 {[%clk 0:01:56.9]}
15... Nxc3 {[%clk 0:02:08]} 16. Qxc3 {[%clk 0:01:56]} 16... d5 {[%clk
0:02:03.5]} 17. Nb3 {[%clk 0:01:54.6]} 17... Rfb8 {[%clk 0:01:49.5]} 18. Qc5
{[%clk 0:01:30.8]} 18... Kf8 {[%clk 0:01:45.9]} 19. Rhf1 {[%clk 0:00:56.6]}
19... g6 {[%clk 0:01:36.5]} 20. g4 {[%clk 0:00:55.8]} 20... Rb5 {[%clk
0:01:21.8]} 21. Qc3 {[%clk 0:00:50.7]} 21... Qb4 {[%clk 0:01:14.4]} 22. Qh3
{[%clk 0:00:31.9]} 22... Kg7 {[%clk 0:01:14.1]} 23. f5 {[%clk 0:00:32.3]} 23...
exf5 {[%clk 0:00:58.6]} 24. gxf5 {[%clk 0:00:33.2]} 24... Bxf5 {[%clk
0:00:58.8]} 25. Rxf5 {[%clk 0:00:33.3]} 25... gxf5 {[%clk 0:00:59.2]} 26. Rg1+
{[%clk 0:00:34]} 26... Kf8 {[%clk 0:00:43.4]} 27. Qxh6+ {[%clk 0:00:33]} 27...
Ke8 {[%clk 0:00:38.4]} 28. Qxc6+ {[%clk 0:00:21.2]} 28... Ke7 {[%clk 0:00:35]}
29. Qxa8 {[%clk 0:00:21]} 1-0

[Event "*** Titled Tuesday Blitz"]
[Site "Chess.com"]
[Date "2020.11.24"]
[Round "10"]
[White "rududuyk"]
[Black "profofchess"]
[Result "0-1"]
[WhiteElo "2192"]
[BlackElo "2393"]
[TimeControl "180+1"]
[EndTime "12:13:32 PST"]
[Termination "profofchess won on time"]

1. e4 {[%clk 0:03:00.9]} 1... e6 {[%clk 0:03:00.2]} 2. d4 {[%clk 0:03:00.4]}
2... d5 {[%clk 0:02:59.4]} 3. Nd2 {[%clk 0:03:00.9]} 3... Nf6 {[%clk 0:02:58.8]}
4. e5 {[%clk 0:03:00.8]} 4... Nfd7 {[%clk 0:02:59.1]} 5. Bd3 {[%clk 0:03:01.3]}
5... c5 {[%clk 0:02:59.5]} 6. c3 {[%clk 0:03:01.9]} 6... Nc6 {[%clk 0:02:59.8]}
7. Ne2 {[%clk 0:03:02.5]} 7... cxd4 {[%clk 0:03:00.2]} 8. cxd4 {[%clk
0:03:03.4]} 8... f6 {[%clk 0:03:00.8]} 9. exf6 {[%clk 0:03:03.7]} 9... Nxf6
{[%clk 0:03:01.7]} 10. O-O {[%clk 0:03:01.1]} 10... Bd6 {[%clk 0:03:02.2]} 11.
Nf3 {[%clk 0:03:00.6]} 11... Qc7 {[%clk 0:03:02]} 12. Bg5 {[%clk 0:02:59.1]}
12... O-O {[%clk 0:02:59.3]} 13. Rc1 {[%clk 0:02:51.8]} 13... h6 {[%clk
0:02:59.3]} 14. Bh4 {[%clk 0:02:50.5]} 14... Nh5 {[%clk 0:02:57]} 15. Bg6 {[%clk
0:02:25.9]} 15... Rxf3 {[%clk 0:02:55.3]} 16. gxf3 {[%clk 0:02:25.6]} 16...
Bxh2+ {[%clk 0:02:54.9]} 17. Kg2 {[%clk 0:02:22.5]} 17... Nf4+ {[%clk
0:02:49.9]} 18. Nxf4 {[%clk 0:02:20.9]} 18... Bxf4 {[%clk 0:02:50.8]} 19. Rc2
{[%clk 0:02:08.5]} 19... Bd7 {[%clk 0:02:45.6]} 20. Bg3 {[%clk 0:02:03.6]} 20...
Rf8 {[%clk 0:02:44.6]} 21. a3 {[%clk 0:01:52.1]} 21... Qd8 {[%clk 0:02:44.2]}
22. Qd3 {[%clk 0:01:45.2]} 22... Qf6 {[%clk 0:02:42.2]} 23. Bh7+ {[%clk
0:01:38.9]} 23... Kh8 {[%clk 0:02:42]} 24. Rd1 {[%clk 0:01:33.1]} 24... e5
{[%clk 0:02:18.6]} 25. Qg6 {[%clk 0:00:50.4]} 25... Nxd4 {[%clk 0:02:16.6]} 26.
Rc7 {[%clk 0:00:45.3]} 26... Ba4 {[%clk 0:01:28.5]} 27. Rxd4 {[%clk 0:00:22.1]}
27... Bxg3 {[%clk 0:01:04.2]} 28. Qxg3 {[%clk 0:00:09.2]} 28... exd4 {[%clk
0:01:02.3]} 29. Bd3 {[%clk 0:00:08.4]} 29... Be8 {[%clk 0:00:50.6]} 30. Rxb7
{[%clk 0:00:06.1]} 30... Bh5 {[%clk 0:00:50.5]} 31. Kh2 {[%clk 0:00:04.9]} 31...
Bxf3 {[%clk 0:00:48]} 32. Rxa7 {[%clk 0:00:05.1]} 32... h5 {[%clk 0:00:23.5]}
33. Rd7 {[%clk 0:00:01.1]} 33... h4 {[%clk 0:00:23.7]} 0-1

[Event "*** Titled Tuesday Blitz"]
[Site "Chess.com"]
[Date "2020.11.24"]
[Round "10"]
[White "nitpicker"]
[Black "Chessalary"]
[Result "0-1"]
[WhiteElo "2299"]
[BlackElo "2426"]
[TimeControl "180+1"]
[EndTime "12:13:34 PST"]
[Termination "Chessalary won on time"]

1. d4 {[%clk 0:03:00.9]} 1... d5 {[%clk 0:02:58.2]} 2. c4 {[%clk 0:03:00.5]}
2... e6 {[%clk 0:02:58.1]} 3. Nf3 {[%clk 0:02:59.5]} 3... c6 {[%clk 0:02:58.7]}
4. Qc2 {[%clk 0:02:54.2]} 4... Nf6 {[%clk 0:02:57.2]} 5. g3 {[%clk 0:02:54]}
5... Be7 {[%clk 0:02:53.7]} 6. Bg2 {[%clk 0:02:54.1]} 6... O-O {[%clk
0:02:49.7]} 7. O-O {[%clk 0:02:53.9]} 7... Nbd7 {[%clk 0:02:48]} 8. Rd1 {[%clk
0:02:53.7]} 8... Re8 {[%clk 0:02:48.2]} 9. Nc3 {[%clk 0:02:50.8]} 9... b6 {[%clk
0:02:48.5]} 10. b3 {[%clk 0:02:49.9]} 10... Bb7 {[%clk 0:02:48.6]} 11. e4 {[%clk
0:02:45.3]} 11... dxe4 {[%clk 0:02:47.9]} 12. Ng5 {[%clk 0:02:44.8]} 12... h6
{[%clk 0:02:44.8]} 13. Ngxe4 {[%clk 0:02:43.7]} 13... Nxe4 {[%clk 0:02:45]} 14.
Nxe4 {[%clk 0:02:35.6]} 14... Nf6 {[%clk 0:02:43.5]} 15. c5 {[%clk 0:02:28.8]}
15... Nd5 {[%clk 0:02:27.7]} 16. a3 {[%clk 0:02:28.3]} 16... Qc7 {[%clk
0:02:24.9]} 17. b4 {[%clk 0:02:15.6]} 17... a5 {[%clk 0:02:24]} 18. Bd2 {[%clk
0:02:13.7]} 18... axb4 {[%clk 0:02:21.9]} 19. axb4 {[%clk 0:02:13.4]} 19... Red8
{[%clk 0:02:15.6]} 20. f4 {[%clk 0:02:02.6]} 20... bxc5 {[%clk 0:02:11.6]} 21.
bxc5 {[%clk 0:01:49.3]} 21... Nf6 {[%clk 0:02:04.3]} 22. Bc3 {[%clk 0:01:33.5]}
22... Nxe4 {[%clk 0:02:01.4]} 23. Qxe4 {[%clk 0:01:27.4]} 23... Bf6 {[%clk
0:01:59.3]} 24. h4 {[%clk 0:01:12.4]} 24... Qd7 {[%clk 0:01:49.6]} 25. Rxa8
{[%clk 0:01:10.8]} 25... Rxa8 {[%clk 0:01:48.9]} 26. Qb1 {[%clk 0:01:05.2]}
26... Ra4 {[%clk 0:01:25.8]} 27. Qb2 {[%clk 0:01:03.9]} 27... Ba6 {[%clk
0:01:15.1]} 28. Be4 {[%clk 0:00:53.9]} 28... Bb5 {[%clk 0:01:06.6]} 29. Bc2
{[%clk 0:00:48.9]} 29... Ra8 {[%clk 0:00:50.2]} 30. h5 {[%clk 0:00:49]} 30...
Qd5 {[%clk 0:00:46.8]} 31. Re1 {[%clk 0:00:28.9]} 31... Qxh5 {[%clk 0:00:43.8]}
32. Kg2 {[%clk 0:00:27.3]} 32... Bc4 {[%clk 0:00:41.3]} 33. Be4 {[%clk
0:00:23.3]} 33... Bd5 {[%clk 0:00:38.4]} 34. Bxd5 {[%clk 0:00:17.5]} 34... Qxd5+
{[%clk 0:00:39.3]} 35. Kf2 {[%clk 0:00:17.6]} 35... Ra2 {[%clk 0:00:38.7]} 0-1

[Event "*** Titled Tuesday Blitz"]
[Site "Chess.com"]
[Date "2020.11.24"]
[Round "10"]
[White "AliKa2810"]
[Black "Zhigalko_Sergei"]
[Result "0-1"]
[WhiteElo "2604"]
[BlackElo "2883"]
[TimeControl "180+1"]
[EndTime "12:13:35 PST"]
[Termination "Zhigalko_Sergei won by resignation"]

1. d4 {[%clk 0:03:00.9]} 1... Nf6 {[%clk 0:02:59.9]} 2. c4 {[%clk 0:03:01.3]}
2... e6 {[%clk 0:03:00.2]} 3. Nc3 {[%clk 0:03:01.6]} 3... Bb4 {[%clk 0:03:00]}
4. e3 {[%clk 0:03:02]} 4... O-O {[%clk 0:02:59.9]} 5. Ne2 {[%clk 0:03:02.6]}
5... d5 {[%clk 0:03:00.1]} 6. a3 {[%clk 0:03:02.6]} 6... Be7 {[%clk 0:02:59.8]}
7. cxd5 {[%clk 0:02:59.7]} 7... exd5 {[%clk 0:02:59.7]} 8. g3 {[%clk 0:03:00.3]}
8... c6 {[%clk 0:02:59.6]} 9. Bg2 {[%clk 0:03:00.9]} 9... Re8 {[%clk 0:02:57.9]}
10. O-O {[%clk 0:03:00.8]} 10... Nbd7 {[%clk 0:02:52.7]} 11. Bd2 {[%clk
0:02:48.6]} 11... Nb6 {[%clk 0:02:33.8]} 12. b3 {[%clk 0:02:45.2]} 12... Bf5
{[%clk 0:02:25.5]} 13. f3 {[%clk 0:02:42.1]} 13... Bf8 {[%clk 0:02:20]} 14. g4
{[%clk 0:02:34.2]} 14... Bd3 {[%clk 0:02:18.5]} 15. Bc1 {[%clk 0:02:16.4]} 15...
Ba6 {[%clk 0:02:11.9]} 16. Rf2 {[%clk 0:01:56.1]} 16... Bd6 {[%clk 0:01:40.9]}
17. Ng3 {[%clk 0:01:48.5]} 17... Qc7 {[%clk 0:01:39.8]} 18. Nce2 {[%clk
0:01:47.8]} 18... Bxe2 {[%clk 0:01:37.7]} 19. Nxe2 {[%clk 0:01:38.1]} 19...
Bxh2+ {[%clk 0:01:37.3]} 20. Kh1 {[%clk 0:01:35.2]} 20... Bg3 {[%clk 0:01:25.4]}
21. Rf1 {[%clk 0:01:35]} 21... Bd6 {[%clk 0:01:07.3]} 22. Qe1 {[%clk 0:01:31.9]}
22... Re6 {[%clk 0:01:05.9]} 23. g5 {[%clk 0:01:13.3]} 23... Nh5 {[%clk
0:01:02.5]} 24. Qh4 {[%clk 0:01:13.3]} 24... g6 {[%clk 0:00:54.8]} 25. Bh3
{[%clk 0:01:08.4]} 25... Re7 {[%clk 0:00:34.2]} 26. Kg2 {[%clk 0:01:08.3]} 26...
Rae8 {[%clk 0:00:33.3]} 27. Kf2 {[%clk 0:01:01.9]} 27... c5 {[%clk 0:00:25.4]}
28. Bg4 {[%clk 0:01:02]} 28... cxd4 {[%clk 0:00:25.5]} 29. Bxh5 {[%clk
0:00:54.4]} 29... dxe3+ {[%clk 0:00:25.9]} 30. Kg2 {[%clk 0:00:54.3]} 30... Qc2
{[%clk 0:00:24.4]} 31. f4 {[%clk 0:00:48]} 31... gxh5 {[%clk 0:00:24.6]} 32.
Qxh5 {[%clk 0:00:48.9]} 32... d4 {[%clk 0:00:23.5]} 33. Rh1 {[%clk 0:00:23]}
33... Nd5 {[%clk 0:00:23.2]} 34. Ra2 {[%clk 0:00:15.1]} 34... Nxf4+ {[%clk
0:00:23]} 35. Kf3 {[%clk 0:00:15.6]} 35... Qe4+ {[%clk 0:00:22.5]} 0-1

[Event "*** Titled Tuesday Blitz"]
[Site "Chess.com"]
[Date "2020.11.24"]
[Round "10"]
[White "amatatanav"]
[Black "HanSchut"]
[Result "1-0"]
[WhiteElo "2380"]
[BlackElo "2208"]
[TimeControl "180+1"]
[EndTime "12:13:37 PST"]
[Termination "amatatanav won by checkmate"]

1. e4 {[%clk 0:02:42.4]} 1... c5 {[%clk 0:02:59.3]} 2. Ne2 {[%clk 0:02:42.2]}
2... d6 {[%clk 0:02:59.3]} 3. g3 {[%clk 0:02:40.5]} 3... g6 {[%clk 0:02:59.6]}
4. Bg2 {[%clk 0:02:38.8]} 4... Bg7 {[%clk 0:03:00.1]} 5. c3 {[%clk 0:02:39.5]}
5... Nc6 {[%clk 0:03:00.4]} 6. d4 {[%clk 0:02:39.7]} 6... cxd4 {[%clk
0:02:27.7]} 7. cxd4 {[%clk 0:02:40.6]} 7... Nf6 {[%clk 0:02:22.3]} 8. Nbc3
{[%clk 0:02:40.8]} 8... O-O {[%clk 0:02:22.2]} 9. O-O {[%clk 0:02:40.2]} 9...
Bd7 {[%clk 0:02:17.4]} 10. h3 {[%clk 0:02:36.5]} 10... Rc8 {[%clk 0:02:16.7]}
11. Be3 {[%clk 0:02:35.7]} 11... Na5 {[%clk 0:02:12.6]} 12. b3 {[%clk
0:02:34.6]} 12... b6 {[%clk 0:02:02.2]} 13. Qd2 {[%clk 0:02:30]} 13... Rc7
{[%clk 0:01:43.1]} 14. f4 {[%clk 0:02:27.3]} 14... Bc6 {[%clk 0:01:29.1]} 15. g4
{[%clk 0:02:21.5]} 15... Ne8 {[%clk 0:01:13.9]} 16. g5 {[%clk 0:02:02.2]} 16...
Ba8 {[%clk 0:01:13.4]} 17. h4 {[%clk 0:01:56.1]} 17... Qc8 {[%clk 0:01:07.9]}
18. Kh2 {[%clk 0:01:49.5]} 18... Qg4 {[%clk 0:00:57.2]} 19. Rf3 {[%clk
0:01:14.4]} 19... Qxh4+ {[%clk 0:00:40.1]} 20. Rh3 {[%clk 0:01:13.8]} 20... Qg4
{[%clk 0:00:40.2]} 21. f5 {[%clk 0:01:12.4]} 21... Rxc3 {[%clk 0:00:28.9]} 22.
Nxc3 {[%clk 0:01:08.8]} 22... gxf5 {[%clk 0:00:22.4]} 23. Bf3 {[%clk 0:01:05.1]}
23... e5 {[%clk 0:00:12.4]} 24. Bxg4 {[%clk 0:00:59.2]} 24... fxg4 {[%clk
0:00:13.3]} 25. Rh4 {[%clk 0:00:56.6]} 25... g3+ {[%clk 0:00:12.1]} 26. Kxg3
{[%clk 0:00:56.1]} 26... f5 {[%clk 0:00:10.9]} 27. gxf6 {[%clk 0:00:51.7]} 27...
Nxf6 {[%clk 0:00:09.9]} 28. dxe5 {[%clk 0:00:47.8]} 28... dxe5 {[%clk
0:00:10.8]} 29. Rg1 {[%clk 0:00:34.8]} 29... Kh8 {[%clk 0:00:10.4]} 30. Kh2
{[%clk 0:00:33.6]} 30... Nc6 {[%clk 0:00:08.4]} 31. Rxg7 {[%clk 0:00:32.2]}
31... Kxg7 {[%clk 0:00:08.3]} 32. Bh6+ {[%clk 0:00:31.9]} 32... Kf7 {[%clk
0:00:08.9]} 33. Bxf8 {[%clk 0:00:31]} 33... Kxf8 {[%clk 0:00:09.4]} 34. Qd6+
{[%clk 0:00:29.1]} 34... Kf7 {[%clk 0:00:09.8]} 35. Nd5 {[%clk 0:00:25.9]} 35...
Nxd5 {[%clk 0:00:07.9]} 36. Rxh7+ {[%clk 0:00:25.7]} 36... Kg8 {[%clk
0:00:07.4]} 37. Qg6+ {[%clk 0:00:25.9]} 37... Kf8 {[%clk 0:00:06.9]} 38. Qf7#
{[%clk 0:00:26.8]} 1-0

[Event "*** Titled Tuesday Blitz"]
[Site "Chess.com"]
[Date "2020.11.24"]
[Round "10"]
[White "Chessdreamer2020"]
[Black "barriochess"]
[Result "1-0"]
[WhiteElo "2527"]
[BlackElo "2375"]
[TimeControl "180+1"]
[EndTime "12:13:38 PST"]
[Termination "Chessdreamer2020 won by checkmate"]

1. e4 {[%clk 0:03:00.9]} 1... d6 {[%clk 0:03:00.2]} 2. d4 {[%clk 0:02:59.6]}
2... Nf6 {[%clk 0:03:00.4]} 3. f3 {[%clk 0:02:59.9]} 3... d5 {[%clk 0:02:57.3]}
4. e5 {[%clk 0:02:56.4]} 4... Ng8 {[%clk 0:02:57.7]} 5. c4 {[%clk 0:02:56.3]}
5... dxc4 {[%clk 0:02:56.3]} 6. Bxc4 {[%clk 0:02:56.7]} 6... e6 {[%clk
0:02:52.4]} 7. Nc3 {[%clk 0:02:56.8]} 7... Nd7 {[%clk 0:02:52.3]} 8. Bb3 {[%clk
0:02:45.3]} 8... Nb6 {[%clk 0:02:49.7]} 9. Nge2 {[%clk 0:02:44.9]} 9... c5
{[%clk 0:02:39.6]} 10. Be3 {[%clk 0:02:40.4]} 10... cxd4 {[%clk 0:02:37.3]} 11.
Qxd4 {[%clk 0:02:35.2]} 11... Bd7 {[%clk 0:02:30.6]} 12. O-O {[%clk 0:02:31.8]}
12... Ne7 {[%clk 0:02:30]} 13. Rad1 {[%clk 0:02:28.8]} 13... Nc6 {[%clk
0:02:29.9]} 14. Qg4 {[%clk 0:02:28.4]} 14... h5 {[%clk 0:02:27.6]} 15. Qg3
{[%clk 0:02:28.3]} 15... a6 {[%clk 0:02:20.3]} 16. Bg5 {[%clk 0:02:26.2]} 16...
Qc7 {[%clk 0:02:17.9]} 17. f4 {[%clk 0:02:26]} 17... Bc5+ {[%clk 0:02:12.6]} 18.
Kh1 {[%clk 0:02:25.3]} 18... Na5 {[%clk 0:02:04]} 19. Bc2 {[%clk 0:02:14.9]}
19... Nac4 {[%clk 0:02:03.1]} 20. f5 {[%clk 0:01:55.4]} 20... h4 {[%clk
0:01:58.7]} 21. Bxh4 {[%clk 0:01:35.3]} 21... Ne3 {[%clk 0:01:57.2]} 22. Qxg7
{[%clk 0:01:34.9]} 22... Rxh4 {[%clk 0:01:53.5]} 23. fxe6 {[%clk 0:01:18.3]}
23... Bxe6 {[%clk 0:01:42.7]} 24. Ne4 {[%clk 0:00:59.5]} 24... Rxe4 {[%clk
0:01:41.2]} 25. Bxe4 {[%clk 0:00:57.6]} 25... Nxf1 {[%clk 0:01:40.4]} 26. Nf4
{[%clk 0:00:40.1]} 26... Rd8 {[%clk 0:00:57.9]} 27. Rxf1 {[%clk 0:00:35.3]}
27... Bxa2 {[%clk 0:00:52]} 28. e6 {[%clk 0:00:26.5]} 28... Bf8 {[%clk
0:00:34.8]} 29. Qg8 {[%clk 0:00:17.6]} 29... Rd4 {[%clk 0:00:17.6]} 30. Ng6
{[%clk 0:00:14.5]} 30... Rxe4 {[%clk 0:00:08]} 31. Qxf8# {[%clk 0:00:12.3]} 1-0